fUST/lending_fUST_20250406
["ID","MTS","AMOUNT","RATE_DAILY","PERIOD"]
[357219288,1743913838684,-615.66,0.00022465,2]
[357219289,1743913838693,-500.0,0.00022465,2]
[357219290,1743913838702,-500.0,0.00022465,2]
[357219291,1743913838712,-500.0,0.00022465,2]
[357219292,1743913838721,-159.31545373,0.00022465,2]
[357219293,1743913838737,-500.0,0.00022465,2]
[357219294,1743913838751,-4224.74,0.00022465,2]
[357219295,1743913838761,-500.0,0.00022465,2]
[357219296,1743913838771,-500.0,0.00022465,2]
[357219297,1743913838782,-500.0,0.00022465,2]
[357219298,1743913838791,-500.0,0.00022465,2]
[357219299,1743913838801,-500.0,0.00022465,2]
[357219300,1743913838811,-262.77686,0.00022465,7]
[357219301,1743913838820,-500.0,0.00022465,2]
[357219302,1743913838830,-500.0,0.00022465,2]
[357219303,1743913838840,-500.0,0.00022465,2]
[357219304,1743913838850,-500.0,0.00022465,2]
[357219305,1743913838859,-500.0,0.00022465,2]
[357219306,1743913838869,-593.67,0.00022465,2]
[357219307,1743913838879,-500.0,0.00022465,2]
[357219308,1743913838888,-500.0,0.00022465,2]
[357219309,1743913838898,-500.0,0.00022465,2]
[357219310,1743913838908,-500.0,0.00022465,2]
[357219311,1743913838918,-500.0,0.00022465,2]
[357219312,1743913838927,-5466.33132121,0.00022521,4]
[357219313,1743913838937,-729.16666667,0.0002255,2]
[357219314,1743913838946,-419.28457398,0.0002255,2]
[357219315,1743913838955,-12458.93820146,0.0002255,2]
[357219316,1743913838964,-722.216225,0.00022561,7]
[357219317,1743913838974,-722.216225,0.00022561,7]
[357219318,1743913838983,-622.007396,0.00022561,7]
[357219319,1743913838993,-164.716831,0.00022564,7]
[357219320,1743913839003,-164.716831,0.00022564,7]
[357219321,1743913839012,-151.0,0.00022586,7]
[357219322,1743913839022,-151.0,0.00022586,7]
[357219323,1743913839031,-151.0,0.00022586,7]
[357219324,1743913839040,-151.0,0.00022586,7]
[357219325,1743913839051,-151.0,0.00022586,7]
[357219326,1743913839060,-300.000123,0.00022587,7]
[357219327,1743913839070,-151.0,0.00022739,7]
[357219328,1743913839080,-151.0,0.00022739,7]
[357219329,1743913839089,-500.0,0.00022739,2]
[357219330,1743913839099,-151.0,0.00022739,7]
[357219331,1743913839109,-321.943672,0.00022739,7]
[357219332,1743913839118,-321.943672,0.00022739,7]
[357219333,1743913839127,-1995.58,0.00022739,2]
[357219334,1743913839137,-480.92,0.00022739,2]
[357219335,1743913839146,-520.41,0.00022739,2]
[357219336,1743913839155,-614.022417,0.00022739,7]
[357219337,1743913839165,-500.0,0.00022739,2]
[357219338,1743913839174,-614.022417,0.00022739,7]
[357219339,1743913839184,-500.0,0.00022739,2]
[357219340,1743913839194,-500.0,0.00022739,2]
[357219341,1743913839203,-800.507117,0.00022739,2]
[357219342,1743913839213,-800.507117,0.00022739,2]
[357219343,1743913839224,-500.0,0.00022739,2]
[357219344,1743913839236,-500.0,0.00022739,2]
[357219345,1743913839247,-184.800867,0.00022739,7]
[357219346,1743913839259,-184.800867,0.00022739,7]
[357219347,1743913839268,-500.0,0.00022739,2]
[357219348,1743913839278,-500.0,0.00022739,2]
[357219349,1743913839288,-582.76,0.00022739,2]
[357219350,1743913839298,-500.0,0.00022739,2]
[357219351,1743913839307,-4224.74,0.00022739,2]
[357219353,1743913839317,-500.0,0.00022739,2]
[357219355,1743913839326,-308.51,0.00022739,2]
[357219357,1743913839335,-500.0,0.00022739,2]
[357219359,1743913839345,-500.0,0.00022739,2]
[357219361,1743913839355,-500.0,0.00022739,2]
[357219364,1743913839364,-500.0,0.00022739,2]
[357219366,1743913839373,-500.0,0.00022739,2]
[357219368,1743913839383,-500.0,0.00022739,2]
[357219371,1743913839392,-361.52,0.00022739,2]
[357219373,1743913839401,-500.0,0.00022739,2]
[357219375,1743913839410,-593.67,0.00022739,2]
[357219377,1743913839420,-500.0,0.00022739,2]
[357219379,1743913839429,-500.0,0.00022739,2]
[357219380,1743913839438,-500.0,0.00022739,2]
[357219381,1743913839447,-500.0,0.00022739,2]
[357219382,1743913839456,-500.0,0.00022739,2]
[357219383,1743913839465,-890.984469,0.0002299,7]
[357219384,1743913839474,-890.984469,0.0002299,7]
[357219386,1743913839485,-366.368549,0.0002299,7]
[357219388,1743913839495,-366.368549,0.0002299,7]
[357219390,1743913839504,-500.0,0.00023013,2]
[357219393,1743913839514,-1995.58,0.00023013,2]
[357219395,1743913839523,-500.0,0.00023013,2]
[357219397,1743913839536,-500.0,0.00023013,2]
[357219399,1743913839546,-376.51549083,0.00023013,2]
[357219402,1743913839556,-253.96,0.00023013,2]
[357219404,1743913839565,-399.29,0.00023013,2]
[357219406,1743913839575,-500.0,0.00023013,2]
[357219408,1743913839584,-500.0,0.00023013,2]
[357219410,1743913839593,-4224.74,0.00023013,2]
[357219412,1743913839603,-500.0,0.00023013,2]
[357219414,1743913839612,-500.0,0.00023013,2]
[357219416,1743913839621,-500.0,0.00023013,2]
[357219418,1743913839630,-500.0,0.00023013,2]
[357219421,1743913839639,-500.0,0.00023013,2]
[357219424,1743913839649,-500.0,0.00023013,2]
[357219427,1743913839658,-500.0,0.00023013,2]
[357219429,1743913839668,-500.0,0.00023013,2]
[357219432,1743913839677,-593.67,0.00023013,2]
[357219435,1743913839686,-500.0,0.00023013,2]
[357219438,1743913839695,-500.0,0.00023013,2]
[357219441,1743913839704,-500.0,0.00023013,2]
[357219444,1743913839714,-500.0,0.00023013,2]
[357219447,1743913839723,-500.0,0.00023013,2]
[357219450,1743913839733,-151.0,0.00023141,7]
[357219452,1743913839742,-151.0,0.00023141,7]
[357219454,1743913839752,-5466.33132121,0.00023141,4]
[357219456,1743913839760,-207.4,0.00023273,2]
[357219458,1743913839769,-418.55471279,0.00023287,2]
[357219460,1743913839779,-1995.58,0.00023287,2]
[357219462,1743913839788,-500.0,0.00023287,2]
[357219464,1743913839797,-500.0,0.00023287,2]
[357219466,1743913839810,-500.0,0.00023287,2]
[357219468,1743913839819,-500.0,0.00023287,2]
[357219470,1743913839829,-4224.74,0.00023287,2]
[357219471,1743913839838,-500.0,0.00023287,2]
[357219473,1743913839847,-393.4,0.00023287,2]
[357219475,1743913839857,-500.0,0.00023287,2]
[357219476,1743913839866,-500.0,0.00023287,2]
[357219478,1743913839875,-500.0,0.00023287,2]
[357219479,1743913839884,-500.0,0.00023287,2]
[357219481,1743913839893,-500.0,0.00023287,2]
[357219483,1743913839902,-500.0,0.00023287,2]
[357219484,1743913839911,-593.67,0.00023287,2]
[357219486,1743913839921,-500.0,0.00023287,2]
[357219488,1743913839930,-500.0,0.00023287,2]
[357219489,1743913839939,-500.0,0.00023287,2]
[357219491,1743913839948,-302.85658242,0.00023287,2]
[357219493,1743913839958,-500.0,0.00023287,2]
[357219494,1743913839967,-300.000123,0.00023561,7]
[357219497,1743913839976,-1995.58,0.00023561,2]
[357219499,1743913839986,-500.0,0.00023561,2]
[357219500,1743913839995,-500.0,0.00023561,2]
[357219502,1743913840005,-800.507117,0.00023561,2]
[357219504,1743913840013,-800.507117,0.00023561,2]
[357219505,1743913840022,-164.716831,0.00023561,7]
[357219507,1743913840032,-164.716831,0.00023561,7]
[357219508,1743913840041,-184.800867,0.00023561,7]
[357219510,1743913840052,-184.800867,0.00023561,7]
[357219512,1743913840062,-722.216225,0.00023561,7]
[357219514,1743913840071,-500.0,0.00023561,2]
[357219516,1743913840081,-722.216225,0.00023561,7]
[357219517,1743913840090,-254.39,0.00023561,2]
[357219519,1743913840101,-4224.74,0.00023561,2]
[357219521,1743913840110,-500.0,0.00023561,2]
[357219523,1743913840122,-500.0,0.00023561,2]
[357219524,1743913840131,-500.0,0.00023561,2]
[357219526,1743913840140,-500.0,0.00023561,2]
[357219528,1743913840149,-500.0,0.00023561,2]
[357219530,1743913840158,-500.0,0.00023561,2]
[357219532,1743913840168,-546.09381794,0.00023561,2]
[357219533,1743913840177,-593.67,0.00023561,2]
[357219535,1743913840186,-227.47383053,0.00023561,2]
[357219537,1743913840195,-438.83720533,0.00023561,2]
[357219539,1743913840205,-500.0,0.00023561,2]
[357219540,1743913840214,-622.007396,0.00023561,7]
[357219542,1743913840223,-151.0,0.0002371,7]
[357219544,1743913840232,-151.0,0.0002371,7]
[357219546,1743913840241,-207.023285,0.0002371,7]
[357219548,1743913840250,-151.0,0.0002371,7]
[357219549,1743913840261,-151.0,0.0002371,7]
[357219550,1743913840271,-154.0,0.0002371,2]
[357219551,1743913840281,-753.2853615,0.00023712,2]
[357219552,1743913840291,-321.943672,0.00023712,7]
[357219553,1743913840300,-151.0,0.00023712,7]
[357219555,1743913840309,-321.943672,0.00023712,7]
[357219557,1743913840318,-614.022417,0.00023712,7]
[357219559,1743913840329,-614.022417,0.00023712,7]
[357219561,1743913840339,-5466.33132121,0.00023762,4]
[357219563,1743913840348,-1995.58,0.00023835,2]
[357219565,1743913840358,-500.0,0.00023835,2]
[357219567,1743913840367,-500.0,0.00023835,2]
[357219569,1743913840377,-500.0,0.00023835,2]
[357219571,1743913840386,-4224.74,0.00023835,2]
[357219573,1743913840396,-648.28,0.00023835,2]
[357219575,1743913840406,-500.0,0.00023835,2]
[357219577,1743913840416,-500.0,0.00023835,2]
[357219579,1743913840425,-500.0,0.00023835,2]
[357219581,1743913840434,-500.0,0.00023835,2]
[357219583,1743913840443,-500.0,0.00023835,2]
[357219585,1743913840453,-593.67,0.00023835,2]
[357219587,1743913840463,-500.0,0.00023835,2]
[357219589,1743913840472,-500.0,0.00023864,2]
[357219591,1743913840481,-158.612312,0.00023918,10]
[357219593,1743913840490,-383.17,0.00024,2]
[357219595,1743913840499,-160.0,0.00024,7]
[357219597,1743913840509,-12500.0,0.00024,3]
[357219599,1743913840518,-10342.61833214,0.00024,3]
[357219601,1743913840530,-890.984469,0.00024,7]
[357219603,1743913840540,-890.984469,0.00024,7]
[357219605,1743913840549,-729.16666667,0.00024,3]
[357219607,1743913840559,-366.368549,0.00024,7]
[357219609,1743913840568,-366.368549,0.00024,7]
[357219611,1743913840578,-160.0,0.00024,3]
[357219623,1743913840674,-602.10862733,0.00024,2]
[357219626,1743913840692,-419.28457398,0.00024,3]
[357219628,1743913840702,-272.295995,0.00024109,7]
[357219630,1743913840711,-151.0,0.00024109,7]
[357219632,1743913840722,-1995.58,0.00024109,2]
[357219634,1743913840733,-500.0,0.00024109,2]
[357219636,1743913840742,-500.0,0.00024109,2]
[357219638,1743913840752,-722.216225,0.00024109,7]
[357219640,1743913840763,-500.0,0.00024109,2]
[357219643,1743913840773,-722.216225,0.00024109,7]
[357219645,1743913840784,-1294.56551596,0.00024109,2]
[357219658,1743913840893,-704.13856333,0.00024109,2]
[357219660,1743913840904,-2226.03592071,0.00024109,2]
[357219662,1743913840915,-500.0,0.00024109,2]
[357219664,1743913840924,-265.47474383,0.00024109,2]
[357219666,1743913840933,-500.0,0.00024109,2]
[357219668,1743913840943,-500.0,0.00024109,2]
[357219670,1743913840952,-500.0,0.00024109,2]
[357219672,1743913840961,-593.67,0.00024109,2]
[357219674,1743913840970,-500.0,0.00024109,2]
[357219676,1743913840979,-622.007396,0.00024109,7]
[357219678,1743913840989,-453.9902714,0.00024201,2]
[357219680,1743913840998,-1114.377424,0.00024359,2]
[357219682,1743913841008,-5466.33132121,0.00024383,5]
[357219684,1743913841017,-1995.58,0.00024383,2]
[357219686,1743913841026,-500.0,0.00024383,2]
[357219688,1743913841036,-800.507117,0.00024383,2]
[357219690,1743913841045,-800.507117,0.00024383,2]
[357219692,1743913841054,-164.716831,0.00024383,7]
[357219694,1743913841063,-164.716831,0.00024383,7]
[357219696,1743913841073,-4224.74,0.00024383,2]
[357219698,1743913841082,-500.0,0.00024383,2]
[357219700,1743913841091,-500.0,0.00024383,2]
[357219701,1743913841100,-500.0,0.00024383,2]
[357219702,1743913841109,-593.67,0.00024383,2]
[357219703,1743913841118,-500.0,0.00024383,2]
[357219704,1743913841128,-544.232,0.00024444,2]
[357219705,1743913841138,-845.264,0.00024444,2]
[357219706,1743913841147,-401.0,0.00024444,2]
[357219707,1743913841156,-3242.41872899,0.000245,7]
[357219708,1743913841166,-207.124914,0.000245,7]
[357219709,1743913841175,-151.0,0.000245,7]
[357219710,1743913841184,-184.800867,0.000245,7]
[357219711,1743913841193,-184.800867,0.000245,7]
[357219712,1743913841203,-215.0738,0.00024642,2]
[357219713,1743913841214,-321.943672,0.00024657,7]
[357219714,1743913841225,-321.943672,0.00024657,7]
[357219715,1743913841235,-1995.58,0.00024657,2]
[357219716,1743913841244,-614.022417,0.00024657,7]
[357219717,1743913841254,-614.022417,0.00024657,7]
[357219718,1743913841264,-500.0,0.00024657,2]
[357219719,1743913841273,-4224.74,0.00024657,2]
[357219720,1743913841283,-500.0,0.00024657,2]
[357219721,1743913841292,-500.0,0.00024657,2]
[357219722,1743913841302,-500.0,0.00024657,2]
[357219723,1743913841312,-593.67,0.00024657,2]
[357219724,1743913841323,-164.73,0.00024657,2]
[357219725,1743913841332,-2200.0,0.00024881,2]
[357219726,1743913841342,-300.000123,0.000249,7]
[357219727,1743913841352,-151.0,0.000249,7]
[357219728,1743913841361,-151.0,0.000249,7]
[357219729,1743913841370,-151.0,0.000249,7]
[357219730,1743913841380,-151.0,0.000249,7]
[357219731,1743913841389,-151.0,0.000249,7]
[357219732,1743913841398,-321.943672,0.000249,7]
[357219733,1743913841407,-321.943672,0.000249,7]
[357219734,1743913841417,-1000.0,0.000249,2]
[357219735,1743913841426,-890.984469,0.000249,7]
[357219736,1743913841436,-890.984469,0.000249,7]
[357219737,1743913841446,-614.022417,0.000249,7]
[357219738,1743913841457,-614.022417,0.000249,7]
[357219739,1743913841467,-366.368549,0.000249,7]
[357219740,1743913841479,-800.507117,0.000249,2]
[357219741,1743913841491,-366.368549,0.000249,7]
[357219742,1743913841506,-800.507117,0.000249,2]
[357219743,1743913841516,-164.716831,0.000249,7]
[357219744,1743913841526,-164.716831,0.000249,7]
[357219745,1743913841539,-184.800867,0.000249,7]
[357219746,1743913841549,-184.800867,0.000249,7]
[357219747,1743913841558,-31467.59304412,0.000249,2]
[357219748,1743913841741,-159.5185218,0.00021773,2]
[357219766,1743913845362,-155.06541874,0.00021773,2]
[357219777,1743913845905,-155.06541874,0.00021773,2]
[357219778,1743913845918,-1326.38782433,0.00021773,2]
[357219779,1743913845928,-500.0,0.00021917,2]
[357219780,1743913845938,-622.007396,0.00021917,2]
[357219781,1743913845947,-500.0,0.00021917,2]
[357219782,1743913845958,-151.0,0.00021917,2]
[357219783,1743913845967,-151.0,0.00021917,2]
[357219784,1743913845977,-500.0,0.00021917,2]
[357219785,1743913845986,-500.0,0.00022191,2]
[357219786,1743913845996,-622.007396,0.00022191,7]
[357219787,1743913846007,-151.0,0.00022191,7]
[357219788,1743913846017,-189.791266,0.00022191,7]
[357219789,1743913846029,-500.0,0.00022191,2]
[357219790,1743913846040,-151.0,0.00022465,7]
[357219791,1743913846050,-500.0,0.00022465,2]
[357219792,1743913846060,-622.007396,0.00022561,7]
[357219793,1743913846070,-500.0,0.00022739,2]
[357219794,1743913846079,-170.26311113,0.00023013,2]
[357219795,1743913846089,-151.0,0.00023287,7]
[357219796,1743913846101,-540.10941417,0.00023287,2]
[357219797,1743913846111,-500.0,0.00023561,2]
[357219798,1743913846120,-622.007396,0.00023561,7]
[357219799,1743913846130,-537.82,0.00023835,2]
[357219800,1743913846139,-151.0,0.00024,7]
[357219801,1743913846149,-622.007396,0.00024109,7]
[357219802,1743913846159,-1796.03718358,0.00024363,2]
[357219803,1743913846170,-28884.92321344,0.000249,2]
[357219804,1743913846182,-2086.94532101,0.000249,2]
[357219805,1743913853072,-185.41821239,0.00021917,2]
[357219806,1743913857066,-151.0,0.00021917,2]
[357219807,1743913860870,-163.58178761,0.00021917,2]
[357219808,1743913860894,-82.46438945,0.00021917,2]
[357219809,1743913867520,-68.53561055,0.00021917,2]
[357219810,1743913867555,-231.46438945,0.00021917,2]
[357219820,1743914757143,-180.7391086,0.00020225,2]
[357219821,1743914757163,-234.242381,0.00020881,2]
[357219822,1743914757183,-159.5185218,0.00021065,2]
[357219823,1743914757204,-1286.61420351,0.00021136,2]
[357219824,1743914757224,-419.28457398,0.00021795,2]
[357219825,1743914757244,-900.73588678,0.00021817,2]
[357219826,1743914845988,-184.38830102,0.00021791,2]
[357219917,1743915037883,-2730.90712476,0.00021131,2]
[357219918,1743915037941,-173.35512295,0.00021131,2]
[357219919,1743915037952,-591.69594462,0.00021786,2]
[357219920,1743915037961,-1382.3571462,0.00021817,2]
[357219921,1743915037970,-4661.41027533,0.000219,3]
[357219922,1743915037979,-200.0,0.00021904,2]
[357219923,1743915037988,-702.61,0.00021907,3]
[357219924,1743915037997,-309.92158622,0.00021913,2]
[357219925,1743915038006,-300.0,0.00021915,2]
[357219926,1743915038015,-500.0,0.00021916,2]
[357219927,1743915038025,-432.74711433,0.00021916,2]
[357219928,1743915038034,-500.0,0.00021916,2]
[357219929,1743915038042,-500.0,0.00021916,2]
[357219930,1743915038051,-388.52,0.00021916,2]
[357219931,1743915038060,-647.00996105,0.00021916,2]
[357219932,1743915038068,-500.0,0.00021916,2]
[357219933,1743915038077,-223.63738221,0.00021916,2]
[357219934,1743915038086,-500.0,0.00021917,2]
[357219935,1743915038095,-500.0,0.00021917,2]
[357219936,1743915038103,-500.0,0.00021917,2]
[357219937,1743915038112,-189.95061081,0.00021917,2]
[357219938,1743915038121,-500.0,0.00021917,2]
[357219939,1743915038130,-536.23505259,0.00021917,2]
[357219940,1743915038139,-500.0,0.00021917,2]
[357219941,1743915038148,-500.0,0.00021917,2]
[357219942,1743915038156,-531.78212858,0.00021917,2]
[357219943,1743915038165,-500.0,0.00021917,2]
[357219944,1743915038174,-535.75691826,0.00021917,2]
[357219945,1743915038183,-533.19174435,0.00021917,2]
[357219946,1743915038192,-515.3088974,0.00021917,2]
[357219947,1743915038201,-500.0,0.00021917,2]
[357219948,1743915038211,-500.0,0.00021917,2]
[357219949,1743915038220,-500.0,0.00021917,2]
[357219950,1743915038229,-500.0,0.00021917,2]
[357219951,1743915038237,-500.0,0.00021917,2]
[357219952,1743915038246,-500.0,0.00021917,2]
[357219953,1743915038255,-500.0,0.00021917,2]
[357219954,1743915038264,-517.5164487,0.00021917,2]
[357219955,1743915038273,-500.0,0.00021917,2]
[357219956,1743915038282,-500.0,0.00021917,2]
[357219957,1743915038291,-514.87751826,0.00021917,2]
[357219958,1743915038300,-500.0,0.00021917,2]
[357219959,1743915038309,-500.0,0.00021917,2]
[357219960,1743915038317,-500.0,0.00021917,2]
[357219961,1743915038326,-509.91628984,0.00021917,2]
[357219962,1743915038335,-511.14737222,0.00021917,2]
[357219963,1743915038344,-500.0,0.00021917,2]
[357219964,1743915038353,-500.0,0.00021917,2]
[357219965,1743915038362,-515.12684024,0.00021917,2]
[357219966,1743915038371,-500.0,0.00021917,2]
[357219967,1743915038380,-500.0,0.00021917,2]
[357219968,1743915038389,-500.0,0.00021917,2]
[357219969,1743915038398,-500.0,0.00021917,2]
[357219970,1743915038407,-500.0,0.00021917,2]
[357219971,1743915038416,-500.0,0.00021917,2]
[357219972,1743915038425,-507.34106265,0.00021917,2]
[357219973,1743915038434,-500.0,0.00021917,2]
[357219974,1743915038443,-539.41897939,0.00021917,2]
[357219975,1743915038451,-511.67457872,0.00021917,2]
[357219976,1743915038460,-500.0,0.00021917,2]
[357219977,1743915038469,-500.0,0.00021917,2]
[357219978,1743915038478,-500.0,0.00021917,2]
[357219979,1743915038487,-500.0,0.00021917,2]
[357219980,1743915038497,-500.0,0.00021917,2]
[357219981,1743915038506,-500.0,0.00021917,2]
[357219982,1743915038516,-500.0,0.00021917,2]
[357219983,1743915038526,-500.0,0.00021917,2]
[357219984,1743915038536,-500.0,0.00021917,2]
[357219985,1743915038547,-500.0,0.00021917,2]
[357219986,1743915038557,-500.0,0.00021917,2]
[357219987,1743915038567,-500.0,0.00021917,2]
[357219988,1743915038577,-504.92293615,0.00021917,2]
[357219989,1743915038588,-500.0,0.00021917,2]
[357219990,1743915038599,-500.0,0.00021917,2]
[357219991,1743915038609,-500.0,0.00021917,2]
[357219992,1743915038619,-500.0,0.00021917,2]
[357219993,1743915038630,-379.07100005,0.00021917,2]
[357219994,1743915038639,-508.40452478,0.00021917,2]
[357219995,1743915038649,-509.99092595,0.00021917,2]
[357219996,1743915038658,-505.00533982,0.00021917,2]
[357219997,1743915038668,-500.0,0.00021917,2]
[357219998,1743915038677,-509.06483661,0.00021917,2]
[357219999,1743915038687,-500.0,0.00021917,2]
[357220000,1743915038697,-500.0,0.00021917,2]
[357220001,1743915038706,-500.0,0.00021917,2]
[357220002,1743915038715,-500.0,0.00021917,2]
[357220003,1743915038725,-500.0,0.00021917,2]
[357220004,1743915038734,-503.97389921,0.00021917,2]
[357220005,1743915038744,-500.0,0.00021917,2]
[357220006,1743915038754,-423.32822906,0.00021917,2]
[357220007,1743915038763,-500.0,0.00021917,2]
[357220008,1743915038773,-541.29207254,0.00021917,2]
[357220009,1743915038782,-506.62566004,0.00021917,2]
[357220010,1743915038792,-504.48842797,0.00021917,2]
[357220011,1743915038802,-527.59599853,0.00021917,2]
[357220012,1743915038812,-515.45692833,0.00021917,2]
[357220013,1743915038821,-503.98955962,0.00021917,2]
[357220014,1743915038830,-505.67203028,0.00021917,2]
[357220015,1743915038840,-509.47004525,0.00021917,2]
[357220016,1743915038850,-533.32203474,0.00021917,2]
[357220017,1743915038859,-500.0,0.00021917,2]
[357220018,1743915038869,-509.10604764,0.00021917,2]
[357220019,1743915038880,-506.98774275,0.00021917,2]
[357220020,1743915038890,-544.72727789,0.00021917,2]
[357220021,1743915038899,-503.30408427,0.00021917,2]
[357220022,1743915038908,-501.72108631,0.00021917,2]
[357220023,1743915038919,-509.33430806,0.00021917,2]
[357220024,1743915038928,-506.07686052,0.00021917,2]
[357220025,1743915038938,-508.62715849,0.00021917,2]
[357220026,1743915038947,-522.72738121,0.00021917,2]
[357220027,1743915038958,-158.07517134,0.00021917,2]
[357220028,1743915038967,-517.70410197,0.00021917,2]
[357220029,1743915038976,-526.32240857,0.00021917,2]
[357220030,1743915038985,-505.07522242,0.00021917,2]
[357220031,1743915038995,-501.78727186,0.00021917,2]
[357220032,1743915039004,-509.43096892,0.00021917,2]
[357220033,1743915039014,-500.0,0.00021917,2]
[357220034,1743915039023,-527.60797708,0.00021917,2]
[357220035,1743915039032,-500.0,0.00021917,2]
[357220036,1743915039042,-507.94109524,0.00021917,2]
[357220037,1743915039051,-517.87687367,0.00021917,2]
[357220038,1743915039061,-554.71319603,0.00021917,2]
[357220039,1743915039070,-505.63386246,0.00021917,2]
[357220040,1743915039079,-506.19495786,0.00021917,2]
[357220041,1743915039088,-554.16072074,0.00021917,2]
[357220042,1743915039097,-513.81733012,0.00021917,2]
[357220043,1743915039106,-1028.32563588,0.00021917,2]
[357220044,1743915039117,-523.96499799,0.00021917,2]
[357220045,1743915039126,-554.23636001,0.00021917,2]
[357220046,1743915039136,-525.65553208,0.00021917,2]
[357220047,1743915039145,-522.54384848,0.00021917,2]
[357220048,1743915039154,-520.25321311,0.00021917,2]
[357220049,1743915039164,-500.0,0.00021917,2]
[357220050,1743915039173,-521.17589694,0.00021917,2]
[357220051,1743915039182,-500.0,0.00021917,2]
[357220052,1743915039191,-510.14963566,0.00021917,2]
[357220053,1743915039200,-543.63900108,0.00021917,2]
[357220054,1743915039210,-523.99932869,0.00021917,2]
[357220055,1743915039219,-500.0,0.00021917,2]
[357220056,1743915039228,-517.80150197,0.00021917,2]
[357220057,1743915039237,-511.91330047,0.00021917,2]
[357220058,1743915039246,-500.0,0.00021917,2]
[357220059,1743915039255,-500.0,0.00021917,2]
[357220060,1743915039264,-508.81329605,0.00021917,2]
[357220061,1743915039274,-500.0,0.00021917,2]
[357220062,1743915039283,-510.7567487,0.00021917,2]
[357220063,1743915039292,-500.0,0.00021917,2]
[357220064,1743915039301,-500.0,0.00021917,2]
[357220065,1743915039311,-527.83144961,0.00021917,2]
[357220066,1743915039320,-580.85534083,0.00021917,2]
[357220067,1743915039329,-511.51289482,0.00021917,2]
[357220068,1743915039338,-520.36307643,0.00021917,2]
[357220069,1743915039347,-522.68310626,0.00021917,2]
[357220070,1743915039356,-513.59448686,0.00021917,2]
[357220071,1743915039365,-547.40633156,0.00021917,2]
[357220072,1743915039375,-500.0,0.00021917,2]
[357220073,1743915039385,-500.0,0.00021917,2]
[357220074,1743915039394,-500.0,0.00021917,2]
[357220075,1743915039403,-504.53571295,0.00021917,2]
[357220076,1743915039413,-500.0,0.00021917,2]
[357220077,1743915039422,-500.0,0.00021917,2]
[357220078,1743915039530,-500.0,0.00021917,2]
[357220079,1743915039540,-521.17515295,0.00021917,2]
[357220080,1743915039549,-525.27029201,0.00021917,2]
[357220081,1743915039558,-512.23752174,0.00021917,2]
[357220082,1743915039568,-537.14385438,0.00021917,2]
[357220083,1743915039577,-508.33203649,0.00021917,2]
[357220084,1743915039587,-500.0,0.00021917,2]
[357220085,1743915039596,-500.0,0.00021917,2]
[357220086,1743915039605,-507.52847409,0.00021917,2]
[357220087,1743915039614,-519.78415533,0.00021917,2]
[357220088,1743915039624,-500.0,0.00021917,2]
[357220089,1743915039633,-511.9537834,0.00021917,2]
[357220090,1743915039642,-514.85305989,0.00021917,2]
[357220091,1743915039652,-537.84510974,0.00021917,2]
[357220092,1743915039661,-537.49952855,0.00021917,2]
[357220093,1743915039671,-490.0,0.00021917,2]
[357220094,1743915039680,-545.34985231,0.00021917,2]
[357220095,1743915039689,-504.06568455,0.00021917,2]